{"text_format":"1","workbook":"xlsx","n_sheets":13,"sheets":["Ident. Empresa","Atividade anual","Projeto 1","Projeto 2","Projeto 3","Projeto 4","Projeto 5","Projeto 6","Projeto 7","Projeto 8","Projeto 9","Projeto 10","Aux"],"not_rendered":{"charts":0,"images":2,"macros":1,"external_links":0,"defined_names":11,"comments":0,"pivot_tables":0},"unopened":[],"bounds":{"document_bytes":16777216,"sheet_cells":100000,"rows_first":2000,"rows_last":500,"rows_between":2000,"halvings":0,"cell_chars":16384,"cell_head_chars":4096},"cells_cut":0,"cells_raw":0,"read":"whole","date_system":"1900"}

{"sheet":"Ident. Empresa","index":0,"n_rows":38,"n_cols":13,"rows_kept":38,"cut":false,"hidden":false,"merged":[[12,0,12,11],[0,0,6,12],[9,1,9,11],[11,1,11,11],[42,1,47,11],[31,2,31,9],[32,2,32,9],[33,2,33,9],[34,2,34,9],[35,2,35,9],[36,2,36,9],[16,4,16,10],[18,4,18,7],[22,1,22,6],[41,1,41,11],[37,2,37,9],[19,3,19,11],[27,2,27,9],[28,2,28,9],[29,2,29,9],[30,2,30,9]]}
[]
[]
[]
[]
[]
[]
[]
[]
[]
[null,"No Ponto 10 do Artigo 40º do Decreto-Lei n.º 162/2014 de 31 de outubro, na sua redação atual, as entidades beneficiadas pelo SIFIDE comprometem-se a comunicar anualmente os resultados das atividades apoiadas pelo incentivo fiscal concedido."]
[]
[null,"Para cumprimento do acima referido, solicitamos o preenchimento dos indicadores constantes neste ficheiro."]
[]
[]
[null,"1. CARACTERIZAÇÃO GERAL DA EMPRESA"]
[]
[null,null,null,"Denominação Social:"]
[]
[null,null,null,"NIPC:"]
[]
[]
[]
[null,"2. QUANTIFIQUE A ATIVIDADE DE I&D ANUAL "]
[]
[]
[null,"3. IDENTIFIQUE OS PROJETOS CONCLUÍDOS NO ANO 2017 E QUALIFIQUE OS RESULTADOS OBTIDOS"]
[]
[null,"N.º","Designação",null,null,null,null,null,null,null,"Data Início","Data fim","Formulário"]
[null,1,null,null,null,null,null,null,null,null,null,null,"Projeto 1"]
[null,2,null,null,null,null,null,null,null,null,null,null,"Projeto 2"]
[null,3,null,null,null,null,null,null,null,null,null,null,"Projeto 3"]
[null,4,null,null,null,null,null,null,null,null,null,null,"Projeto 4"]
[null,5,null,null,null,null,null,null,null,null,null,null,"Projeto 5"]
[null,6,null,null,null,null,null,null,null,null,null,null,"Projeto 6"]
[null,7,null,null,null,null,null,null,null,null,null,null,"Projeto 7"]
[null,8,null,null,null,null,null,null,null,null,null,null,"Projeto 8"]
[null,9,null,null,null,null,null,null,null,null,null,null,"Projeto 9"]
[null,10,null,null,null,null,null,null,null,null,null,null,"Projeto 10"]

{"sheet":"Atividade anual","index":1,"n_rows":85,"n_cols":3,"rows_kept":85,"cut":false,"hidden":false,"merged":[[48,3,48,4],[45,3,45,4],[46,3,46,4],[44,3,44,4],[75,1,75,2],[61,3,61,4],[62,3,62,4],[59,3,59,4],[60,3,60,4],[63,3,63,4],[64,3,64,4],[65,3,65,4],[67,3,67,4],[68,3,68,4],[69,3,69,4],[38,1,38,2],[20,1,20,2],[5,1,5,2],[57,3,57,4],[58,3,58,4],[55,3,55,4],[56,3,56,4],[53,3,53,4],[54,3,54,4],[51,3,51,4],[52,3,52,4],[49,3,49,4],[50,3,50,4],[47,3,47,4],[50,1,50,2],[43,1,43,2]]}
["Contribuição quantitativa do SIFIDE para todas as atividades anuais de I&D"]
["(Considerar como referência o ano sobre o qual incidiu o apoio SIFIDE)"]
[]
["1. Criação de Emprego"]
[]
["Indicador",2017]
[null,"Homens","Mulheres"]
["Nº empregos, por nível de qualificação"]
["<=4"]
[5]
[6]
[7]
[8]
["Nº empregos, por tipo de vínculo"]
["Sem termo"]
["Termo incerto"]
["A termo certo"]
[]
["2. Propriedade Industrial"]
[]
["Indicador",2017]
[null,"Nacional","Internacional"]
["Registo (nº)"]
["Patente"]
["Marca"]
["Design"]
["Modelo de Utilidade"]
["Licenciamento (nº)"]
["Patente"]
["Marca"]
["Design"]
["Modelo de Utilidade"]
["Valor associado ao licenciamento/royalties/venda de PI (em Euros)"]
["Patente"]
["Marca"]
["Design"]
["Modelo de Utilidade"]
[]
["Indicador",2017]
["Nº spin-offs criadas a partir dos projetos apoiados pelo SIFIDE"]
[]
["3. Volume de vendas "]
[]
["Indicador",2017]
[null,"Nacional","Internacional"]
["Volume de Vendas dos projetos apoiados pelo SIFIDE (em Euros)"]
["Volume de Vendas da Empresa (em Euros)"]
[]
["4. Exportações (destino das vendas)"]
[]
["Indicador ",2017]
[null,"Em Euros","% total Exportações"]
["Europa"]
["Espanha"]
["França"]
["Alemanha"]
["Reino Unido"]
["Outros Países"]
["Norte-América"]
["EUA"]
["Canadá"]
["México"]
["Centro/Sul América"]
["Brasil"]
["Argentina"]
["Outros países:"]
["Ásia"]
["China"]
["Japão"]
["Outros países:"]
["África"]
["Oceânia"]
[]
["5. Projetos colaborativos (em consórcio, co-promoção, etc)"]
[]
["Indicador",2017]
[null,"Nacional","Internacional"]
["Com entidades do sistema científico e tecnológico "]
["Centros de I&D/Interface"]
["Universidades"]
["Politécnicos"]
["Com empresas"]
["Startups (<3 anos)"]
["PME"]
["Grandes empresas"]

{"sheet":"Projeto 1","index":2,"n_rows":135,"n_cols":10,"rows_kept":135,"cut":false,"hidden":false,"merged":[[15,1,15,7],[9,1,9,7],[10,1,10,7],[11,1,11,7],[13,1,13,10],[35,1,35,7],[16,1,16,7],[17,1,17,7],[18,1,18,7],[19,1,19,7],[20,1,20,7],[25,1,25,7],[26,1,26,7],[27,1,27,7],[28,1,28,7],[33,1,33,7],[34,1,34,7],[57,1,57,7],[42,1,42,7],[43,1,43,7],[44,1,44,7],[45,1,45,7],[46,1,46,7],[55,1,55,10],[49,2,49,8],[50,2,50,8],[51,2,51,8],[52,2,52,8],[53,2,53,8],[71,1,71,7],[58,1,58,7],[59,1,59,7],[60,1,60,7],[61,1,61,7],[62,1,62,7],[63,1,63,7],[64,1,64,7],[65,1,65,7],[67,1,67,10],[69,1,69,7],[70,1,70,7],[91,1,91,7],[72,1,72,7],[73,1,73,7],[78,1,78,7],[79,1,79,7],[80,1,80,7],[81,1,81,7],[82,1,82,7],[87,1,87,7],[88,1,88,7],[89,1,89,7],[90,1,90,7],[134,1,134,7],[129,1,129,7],[118,1,118,7],[119,1,119,7],[120,1,120,7],[121,1,121,7],[122,1,122,7],[123,1,123,7],[124,1,124,7],[125,1,125,7],[126,1,126,7],[127,1,127,7],[128,1,128,7],[130,1,130,7],[131,1,131,7],[132,1,132,7],[133,1,133,7],[117,1,117,7],[98,1,98,7],[99,1,99,7],[100,1,100,7],[101,1,101,7],[106,1,106,7],[107,1,107,7],[108,1,108,7],[109,1,109,7],[110,1,110,7],[111,1,111,7],[116,1,116,7]]}
["Designação do Projeto",null,null,null,{"$f":"'Ident. Empresa'!$C$29","v":0}]
[]
["Responda às questões seguintes durante os 5 anos após a conclusão do projeto, assinalando as alterações entretanto ocorridas."]
[]
["1. Identifique a tipologia de projeto:"]
[]
[]
["1.1. Tratando-se de um \"Processo\", qual o grau de concretização do projeto? (Assinale com \"X\")"]
[]
[null,"Já está endogeneizado na empresa",null,null,null,null,null,null,null,{"$f":"IF(I10=\"X\",\"Siga para pergunta 2.\",\"\")","v":""}]
[null,"Está em fase de endogeneização",null,null,null,null,null,null,null,{"$f":"IF(I11=\"X\",\"Siga para pergunta 2.\",\"\")","v":""}]
[null,"O processo não foi endogeneizado",null,null,null,null,null,null,null,{"$f":"IF(I12=\"X\",\"Siga para pergunta 1.1.1\",\"\")","v":""}]
[]
[null,"1.1.1. Se o processo não foi endogeneizado, identifique os fatores que estão a dificultar ou impedi-la, classificando a respetiva importância (1=sem importância; 5=muito importante)"]
[]
[null,"Custos de implementação muito superiores aos esperados"]
[null,"Deficiências da empresa em termos de organização e gestão"]
[null,"Escassez de capitais para lançamento dos produtos produzidos com o novo processo"]
[null,"Dificuldade em proteger as inovações dos concorrentes"]
[null,"Falta de pessoal qualificado"]
[null,"Licenciamentos e autorizações"]
[]
[]
["1.2. Tratando-se de um \"Produto/Serviço\", qual o grau de concretização do projeto? (Assinale com\"X\")"]
[]
[null,"Protótipo laboratorial"]
[null,"Protótipo industrial"]
[null,"Disponível para demonstração"]
[null,"Desenvolvimentos adicionais"]
[null,"Pré-série"]
[]
[null,"1.2.1 Em relação aos mercados? (Selecione):"]
[]
[null,"Já está no mercado",null,null,null,null,null,null,null,{"$f":"IF(I34=\"X\",\"Siga para pergunta 1.2.1.1.\",\"\")","v":""}]
[null,"Já está concluído, mas ainda não está no mercado",null,null,null,null,null,null,null,{"$f":"IF(I35=\"X\",\"Siga para pergunta 1.2.1.2.\",\"\")","v":""}]
[null,"Não há intenção de avançar para a produção",null,null,null,null,null,null,null,{"$f":"IF(I36=\"X\",\"Siga para pergunta 1.2.1.3.\",\"\")","v":""}]
[]
[]
[null,"1.2.1.1. Se o produto já está no mercado, indique o ano e assinale com \"X\":"]
[]
[null,"Ano"]
[]
[null,"Produção própria"]
[null,"Produção por terceiros"]
[null,"Nova unidade"]
[null,"Nova linha de produção"]
[null,"Aumento da capacidade de produção"]
[]
[null,"Quais os principais setores clientes pela sua ordem crescente de importância? (lista CAEs)"]
[null,"1.º"]
[null,"2.º"]
[null,"3.º"]
[null,"4.º"]
[null,"5.º",null,null,null,null,null,null,null,"Siga para a pergunta 2."]
[]
[null,"1.2.1.2. Se o produto já está concluído mas ainda não está no mercado, qualifique (1=sem importância; 5=muito importante) os principais fatores que estão a dificultar a obtenção dos objetivos fixados:"]
[]
[null,"Capitais próprios e dificuldade de financiamento"]
[null,"Falta de pessoal qualificado (técnico, comercial, …)"]
[null,"Implementação das soluções"]
[null,"Obtenção de matérias primas e componentes"]
[null,"Licenciamentos e autorizações"]
[null,"Mercados e canais comerciais"]
[null,"Escassez de clientes"]
[null,"Pressão da concorrência"]
[null,"Risco de obsolescência do produto",null,null,null,null,null,null,null,"Siga para a pergunta 2."]
[]
[null,"1.2.1.3. Não há intenção de avançar para a produção pelas seguintes razões (assinale com ‘X’):"]
[]
[null,"Não existem resultados valorizáveis"]
[null,"Alteração da situação de mercado"]
[null,"Alterações de normas técnicas ou de certificação"]
[null,"Dificuldade em obter financiamento"]
[null,"Dificuldade nos circuitos de comercialização",null,null,null,null,null,null,null,"Siga para a pergunta 2."]
[]
[]
["2. Existem outras estratégias de valorização de resultados? (assinale com ‘X’) "]
[]
[null,"Joint-Venture"]
[null,"Novo projeto de I&D"]
[null,"Licença de produção"]
[null,"Acordo de representação"]
[null,"Transferência de tecnologia"]
[]
[]
["3. Diga qual o grau de inovação dos resultados do projeto relativamente a outros análogos (assinale com ‘X’)"]
[]
[null,"Aproximação do estado da arte internacional"]
[null,"Atingiu-se o estado da arte internacional"]
[null,"Avanço incremental"]
[null,"Avanço muito significativo"]
[null,"Inovação radical"]
[]
[]
["4. Foi efetuado algum pedido de registo de propriedade industrial? "]
[]
[null,"4.1. Se respondeu \"SIM\", identifique a tipologia (assinale com “X”):"]
[]
[null,"Patente"]
[null,"Marca"]
[null,"Design"]
[null,"Modelo de utilidade"]
[]
[]
[null,"4.2. Se respondeu \"NÃO\", qualifique (1=sem importância; 5=muito importante) os seguintes fatores:"]
[]
[null,"Resultados não são patenteáveis"]
[null,"Sistema de patentes não oferece proteção efetiva"]
[null,"Burocracia elevada"]
[null,"Custos demasiado elevados"]
[null,"A empresa desconhece vantagens efetivas do registo"]
[null,"Empresa dá preferência ao sigilo industrial"]
[]
[]
["5. Contribuição do projeto para outro tipo de benefícios. Identifique a intensidade entre "]
["(1=inexistente; 2=modesto; 3=razoável; 4=grande; 5=muito grande):"]
[null,"Melhorias de qualidade de produtos ou processos"]
[null,"Aumentos de produtividade ou melhoria de eficiência global"]
[null,"Melhoria de sistemas organizativos"]
[null,"Aumento da flexibilidade produtiva"]
[null,"Melhoria nas condições de trabalho e segurança"]
[null,"Melhor posicionamento e imagem no Mercado"]
[null,"Projeto decisivo para a sobrevivência / desenvolvimento da empresa"]
[null,"Ampliação da gama de produtos"]
[null,"Entrada em novos mercados"]
[null,"Substituição de importações"]
[null,"Substituição de produção realizada previamente sob licença"]
[null,"Redução da dependência em termos de aquisição de tecnologia"]
[null,"Desenvolvimento de competências tecnológias internas"]
[null,"Desenvolvimento de capacidades de relacionamento com entidades do Sistema de I&I"]
[null,"(Re) definição de estratégia tecnológica e de I&D"]
[null,"(Re)definição da estratégia global da empresa"]
[null,"Criação de emprego altamente qualificado de nível 8 (doutorados)"]
[null,"Formação de Recursos humanos internos"]
[null,"Impacto ambiental"]

{"sheet":"Projeto 2","index":3,"n_rows":135,"n_cols":10,"rows_kept":135,"cut":false,"hidden":false,"merged":[[26,1,26,7],[9,1,9,7],[10,1,10,7],[11,1,11,7],[13,1,13,10],[15,1,15,7],[16,1,16,7],[17,1,17,7],[18,1,18,7],[19,1,19,7],[20,1,20,7],[25,1,25,7],[50,2,50,8],[27,1,27,7],[28,1,28,7],[33,1,33,7],[34,1,34,7],[35,1,35,7],[42,1,42,7],[43,1,43,7],[44,1,44,7],[45,1,45,7],[46,1,46,7],[49,2,49,8],[64,1,64,7],[51,2,51,8],[52,2,52,8],[53,2,53,8],[55,1,55,10],[57,1,57,7],[58,1,58,7],[59,1,59,7],[60,1,60,7],[61,1,61,7],[62,1,62,7],[63,1,63,7],[82,1,82,7],[65,1,65,7],[67,1,67,10],[69,1,69,7],[70,1,70,7],[71,1,71,7],[72,1,72,7],[73,1,73,7],[78,1,78,7],[79,1,79,7],[80,1,80,7],[81,1,81,7],[108,1,108,7],[87,1,87,7],[88,1,88,7],[89,1,89,7],[90,1,90,7],[91,1,91,7],[98,1,98,7],[99,1,99,7],[100,1,100,7],[101,1,101,7],[106,1,106,7],[107,1,107,7],[124,1,124,7],[109,1,109,7],[110,1,110,7],[111,1,111,7],[116,1,116,7],[117,1,117,7],[118,1,118,7],[119,1,119,7],[120,1,120,7],[121,1,121,7],[122,1,122,7],[123,1,123,7],[131,1,131,7],[132,1,132,7],[133,1,133,7],[134,1,134,7],[125,1,125,7],[126,1,126,7],[127,1,127,7],[128,1,128,7],[129,1,129,7],[130,1,130,7]]}
["Designação do Projeto",null,null,null,{"$f":"'Ident. Empresa'!$C$30","v":0}]
[]
["Responda às questões seguintes durante os 5 anos após a conclusão do projeto, assinalando as alterações entretanto ocorridas."]
[]
["1. Identifique a tipologia de projeto:"]
[]
[]
["1.1. Tratando-se de um \"Processo\", qual o grau de concretização do projeto? (Assinale com \"X\")"]
[]
[null,"Já está endogeneizado na empresa",null,null,null,null,null,null,null,{"$f":"IF(I10=\"X\",\"Siga para pergunta 2\",\"\")","v":""}]
[null,"Está em fase de endogeneização",null,null,null,null,null,null,null,{"$f":"IF(I11=\"X\",\"Siga para pergunta 2\",\"\")","v":""}]
[null,"O processo não foi endogeneizado",null,null,null,null,null,null,null,{"$f":"IF(I12=\"X\",\"Siga para pergunta 1.1.1\",\"\")","v":""}]
[]
[null,"1.1.1. Se o processo não foi endogeneizado, identifique os fatores que estão a dificultar ou impedi-la, classificando a respetiva importância (1=sem importância; 5=muito importante)"]
[]
[null,"Custos de implementação muito superiores aos esperados"]
[null,"Deficiências da empresa em termos de organização e gestão"]
[null,"Escassez de capitais para lançamento dos produtos produzidos com o novo processo"]
[null,"Dificuldade em proteger as inovações dos concorrentes"]
[null,"Falta de pessoal qualificado"]
[null,"Licenciamentos e autorizações"]
[]
[]
["1.2. Tratando-se de um \"Produto/Serviço\", qual o grau de concretização do projeto? (Assinale com\"X\")"]
[]
[null,"Protótipo laboratorial"]
[null,"Protótipo industrial"]
[null,"Disponível para demonstração"]
[null,"Desenvolvimentos adicionais"]
[null,"Pré-série"]
[]
[null,"1.2.1 Em relação aos mercados? (Selecione):"]
[]
[null,"Já está no mercado",null,null,null,null,null,null,null,{"$f":"IF(I34=\"X\",\"Siga para pergunta 1.2.1.1.\",\"\")","v":""}]
[null,"Já está concluído, mas ainda não está no mercado",null,null,null,null,null,null,null,{"$f":"IF(I35=\"X\",\"Siga para pergunta 1.2.1.2.\",\"\")","v":""}]
[null,"Não há intenção de avançar para a produção",null,null,null,null,null,null,null,{"$f":"IF(I36=\"X\",\"Siga para pergunta 1.2.1.3.\",\"\")","v":""}]
[]
[]
[null,"1.2.1.1. Se o produto já está no mercado, indique o ano e assinale com \"X\":"]
[]
[null,"Ano"]
[]
[null,"Produção própria"]
[null,"Produção por terceiros"]
[null,"Nova unidade"]
[null,"Nova linha de produção"]
[null,"Aumento da capacidade de produção"]
[]
[null,"Quais os principais setores clientes pela sua ordem crescente de importância? (lista CAEs)"]
[null,"1.º"]
[null,"2.º"]
[null,"3.º"]
[null,"4.º"]
[null,"5.º",null,null,null,null,null,null,null,"Siga para a pergunta 2."]
[]
[null,"1.2.1.2. Se o produto já está concluído mas ainda não está no mercado, qualifique (1=sem importância; 5=muito importante) os principais fatores que estão a dificultar a obtenção dos objetivos fixados:"]
[]
[null,"Capitais próprios e dificuldade de financiamento"]
[null,"Falta de pessoal qualificado (técnico, comercial, …)"]
[null,"Implementação das soluções"]
[null,"Obtenção de matérias primas e componentes"]
[null,"Licenciamentos e autorizações"]
[null,"Mercados e canais comerciais"]
[null,"Escassez de clientes"]
[null,"Pressão da concorrência"]
[null,"Risco de obsolescência do produto",null,null,null,null,null,null,null,"Siga para a pergunta 2."]
[]
[null,"1.2.1.3. Não há intenção de avançar para a produção pelas seguintes razões (assinale com ‘X’):"]
[]
[null,"Não existem resultados valorizáveis"]
[null,"Alteração da situação de mercado"]
[null,"Alterações de normas técnicas ou de certificação"]
[null,"Dificuldade em obter financiamento"]
[null,"Dificuldade nos circuitos de comercialização",null,null,null,null,null,null,null,"Siga para a pergunta 2."]
[]
[]
["2. Existem outras estratégias de valorização de resultados? (assinale com ‘X’) "]
[]
[null,"Joint-Venture"]
[null,"Novo projeto de I&D"]
[null,"Licença de produção"]
[null,"Acordo de representação"]
[null,"Transferência de tecnologia"]
[]
[]
["3. Diga qual o grau de inovação dos resultados do projeto relativamente a outros análogos (assinale com ‘X’)"]
[]
[null,"Aproximação do estado da arte internacional"]
[null,"Atingiu-se o estado da arte internacional"]
[null,"Avanço incremental"]
[null,"Avanço muito significativo"]
[null,"Inovação radical"]
[]
[]
["4. Foi efetuado algum pedido de registo de propriedade industrial? "]
[]
[null,"4.1. Se respondeu \"SIM\", identifique a tipologia (assinale com “X”):"]
[]
[null,"Patente"]
[null,"Marca"]
[null,"Design"]
[null,"Modelo de utilidade"]
[]
[]
[null,"4.2. Se respondeu \"NÃO\", qualifique (1=sem importância; 5=muito importante) os seguintes fatores:"]
[]
[null,"Resultados não são patenteáveis"]
[null,"Sistema de patentes não oferece proteção efetiva"]
[null,"Burocracia elevada"]
[null,"Custos demasiado elevados"]
[null,"A empresa desconhece vantagens efetivas do registo"]
[null,"Empresa dá preferência ao sigilo industrial"]
[]
[]
["5. Contribuição do projeto para outro tipo de benefícios. Identifique a intensidade entre "]
["(1=inexistente; 2=modesto; 3=razoável; 4=grande; 5=muito grande):"]
[null,"Melhorias de qualidade de produtos ou processos"]
[null,"Aumentos de produtividade ou melhoria de eficiência global"]
[null,"Melhoria de sistemas organizativos"]
[null,"Aumento da flexibilidade produtiva"]
[null,"Melhoria nas condições de trabalho e segurança"]
[null,"Melhor posicionamento e imagem no Mercado"]
[null,"Projeto decisivo para a sobrevivência / desenvolvimento da empresa"]
[null,"Ampliação da gama de produtos"]
[null,"Entrada em novos mercados"]
[null,"Substituição de importações"]
[null,"Substituição de produção realizada previamente sob licença"]
[null,"Redução da dependência em termos de aquisição de tecnologia"]
[null,"Desenvolvimento de competências tecnológias internas"]
[null,"Desenvolvimento de capacidades de relacionamento com entidades do Sistema de I&I"]
[null,"(Re) definição de estratégia tecnológica e de I&D"]
[null,"(Re)definição da estratégia global da empresa"]
[null,"Criação de emprego altamente qualificado de nível 8 (doutorados)"]
[null,"Formação de Recursos humanos internos"]
[null,"Impacto ambiental"]

{"sheet":"Projeto 3","index":4,"n_rows":135,"n_cols":10,"rows_kept":135,"cut":false,"hidden":false,"merged":[[26,1,26,7],[9,1,9,7],[10,1,10,7],[11,1,11,7],[13,1,13,10],[15,1,15,7],[16,1,16,7],[17,1,17,7],[18,1,18,7],[19,1,19,7],[20,1,20,7],[25,1,25,7],[50,2,50,8],[27,1,27,7],[28,1,28,7],[33,1,33,7],[34,1,34,7],[35,1,35,7],[42,1,42,7],[43,1,43,7],[44,1,44,7],[45,1,45,7],[46,1,46,7],[49,2,49,8],[64,1,64,7],[51,2,51,8],[52,2,52,8],[53,2,53,8],[55,1,55,10],[57,1,57,7],[58,1,58,7],[59,1,59,7],[60,1,60,7],[61,1,61,7],[62,1,62,7],[63,1,63,7],[82,1,82,7],[65,1,65,7],[67,1,67,10],[69,1,69,7],[70,1,70,7],[71,1,71,7],[72,1,72,7],[73,1,73,7],[78,1,78,7],[79,1,79,7],[80,1,80,7],[81,1,81,7],[108,1,108,7],[87,1,87,7],[88,1,88,7],[89,1,89,7],[90,1,90,7],[91,1,91,7],[98,1,98,7],[99,1,99,7],[100,1,100,7],[101,1,101,7],[106,1,106,7],[107,1,107,7],[124,1,124,7],[109,1,109,7],[110,1,110,7],[111,1,111,7],[116,1,116,7],[117,1,117,7],[118,1,118,7],[119,1,119,7],[120,1,120,7],[121,1,121,7],[122,1,122,7],[123,1,123,7],[131,1,131,7],[132,1,132,7],[133,1,133,7],[134,1,134,7],[125,1,125,7],[126,1,126,7],[127,1,127,7],[128,1,128,7],[129,1,129,7],[130,1,130,7]]}
["Designação do Projeto",null,null,null,{"$f":"'Ident. Empresa'!$C$31","v":0}]
[]
["Responda às questões seguintes durante os 5 anos após a conclusão do projeto, assinalando as alterações entretanto ocorridas."]
[]
["1. Identifique a tipologia de projeto:"]
[]
[]
["1.1. Tratando-se de um \"Processo\", qual o grau de concretização do projeto? (Assinale com \"X\")"]
[]
[null,"Já está endogeneizado na empresa",null,null,null,null,null,null,null,{"$f":"IF(I10=\"X\",\"Siga para pergunta 2\",\"\")","v":""}]
[null,"Está em fase de endogeneização",null,null,null,null,null,null,null,{"$f":"IF(I11=\"X\",\"Siga para pergunta 2\",\"\")","v":""}]
[null,"O processo não foi endogeneizado",null,null,null,null,null,null,null,{"$f":"IF(I12=\"X\",\"Siga para pergunta 1.1.1\",\"\")","v":""}]
[]
[null,"1.1.1. Se o processo não foi endogeneizado, identifique os fatores que estão a dificultar ou impedi-la, classificando a respetiva importância (1=sem importância; 5=muito importante)"]
[]
[null,"Custos de implementação muito superiores aos esperados"]
[null,"Deficiências da empresa em termos de organização e gestão"]
[null,"Escassez de capitais para lançamento dos produtos produzidos com o novo processo"]
[null,"Dificuldade em proteger as inovações dos concorrentes"]
[null,"Falta de pessoal qualificado"]
[null,"Licenciamentos e autorizações"]
[]
[]
["1.2. Tratando-se de um \"Produto/Serviço\", qual o grau de concretização do projeto? (Assinale com\"X\")"]
[]
[null,"Protótipo laboratorial"]
[null,"Protótipo industrial"]
[null,"Disponível para demonstração"]
[null,"Desenvolvimentos adicionais"]
[null,"Pré-série"]
[]
[null,"1.2.1 Em relação aos mercados? (Selecione):"]
[]
[null,"Já está no mercado",null,null,null,null,null,null,null,{"$f":"IF(I34=\"X\",\"Siga para pergunta 1.2.1.1.\",\"\")","v":""}]
[null,"Já está concluído, mas ainda não está no mercado",null,null,null,null,null,null,null,{"$f":"IF(I35=\"X\",\"Siga para pergunta 1.2.1.2.\",\"\")","v":""}]
[null,"Não há intenção de avançar para a produção",null,null,null,null,null,null,null,{"$f":"IF(I36=\"X\",\"Siga para pergunta 1.2.1.3.\",\"\")","v":""}]
[]
[]
[null,"1.2.1.1. Se o produto já está no mercado, indique o ano e assinale com \"X\":"]
[]
[null,"Ano"]
[]
[null,"Produção própria"]
[null,"Produção por terceiros"]
[null,"Nova unidade"]
[null,"Nova linha de produção"]
[null,"Aumento da capacidade de produção"]
[]
[null,"Quais os principais setores clientes pela sua ordem crescente de importância? (lista CAEs)"]
[null,"1.º"]
[null,"2.º"]
[null,"3.º"]
[null,"4.º"]
[null,"5.º",null,null,null,null,null,null,null,"Siga para a pergunta 2."]
[]
[null,"1.2.1.2. Se o produto já está concluído mas ainda não está no mercado, qualifique (1=sem importância; 5=muito importante) os principais fatores que estão a dificultar a obtenção dos objetivos fixados:"]
[]
[null,"Capitais próprios e dificuldade de financiamento"]
[null,"Falta de pessoal qualificado (técnico, comercial, …)"]
[null,"Implementação das soluções"]
[null,"Obtenção de matérias primas e componentes"]
[null,"Licenciamentos e autorizações"]
[null,"Mercados e canais comerciais"]
[null,"Escassez de clientes"]
[null,"Pressão da concorrência"]
[null,"Risco de obsolescência do produto",null,null,null,null,null,null,null,"Siga para a pergunta 2."]
[]
[null,"1.2.1.3. Não há intenção de avançar para a produção pelas seguintes razões (assinale com ‘X’):"]
[]
[null,"Não existem resultados valorizáveis"]
[null,"Alteração da situação de mercado"]
[null,"Alterações de normas técnicas ou de certificação"]
[null,"Dificuldade em obter financiamento"]
[null,"Dificuldade nos circuitos de comercialização",null,null,null,null,null,null,null,"Siga para a pergunta 2."]
[]
[]
["2. Existem outras estratégias de valorização de resultados? (assinale com ‘X’) "]
[]
[null,"Joint-Venture"]
[null,"Novo projeto de I&D"]
[null,"Licença de produção"]
[null,"Acordo de representação"]
[null,"Transferência de tecnologia"]
[]
[]
["3. Diga qual o grau de inovação dos resultados do projeto relativamente a outros análogos (assinale com ‘X’)"]
[]
[null,"Aproximação do estado da arte internacional"]
[null,"Atingiu-se o estado da arte internacional"]
[null,"Avanço incremental"]
[null,"Avanço muito significativo"]
[null,"Inovação radical"]
[]
[]
["4. Foi efetuado algum pedido de registo de propriedade industrial? "]
[]
[null,"4.1. Se respondeu \"SIM\", identifique a tipologia (assinale com “X”):"]
[]
[null,"Patente"]
[null,"Marca"]
[null,"Design"]
[null,"Modelo de utilidade"]
[]
[]
[null,"4.2. Se respondeu \"NÃO\", qualifique (1=sem importância; 5=muito importante) os seguintes fatores:"]
[]
[null,"Resultados não são patenteáveis"]
[null,"Sistema de patentes não oferece proteção efetiva"]
[null,"Burocracia elevada"]
[null,"Custos demasiado elevados"]
[null,"A empresa desconhece vantagens efetivas do registo"]
[null,"Empresa dá preferência ao sigilo industrial"]
[]
[]
["5. Contribuição do projeto para outro tipo de benefícios. Identifique a intensidade entre "]
["(1=inexistente; 2=modesto; 3=razoável; 4=grande; 5=muito grande):"]
[null,"Melhorias de qualidade de produtos ou processos"]
[null,"Aumentos de produtividade ou melhoria de eficiência global"]
[null,"Melhoria de sistemas organizativos"]
[null,"Aumento da flexibilidade produtiva"]
[null,"Melhoria nas condições de trabalho e segurança"]
[null,"Melhor posicionamento e imagem no Mercado"]
[null,"Projeto decisivo para a sobrevivência / desenvolvimento da empresa"]
[null,"Ampliação da gama de produtos"]
[null,"Entrada em novos mercados"]
[null,"Substituição de importações"]
[null,"Substituição de produção realizada previamente sob licença"]
[null,"Redução da dependência em termos de aquisição de tecnologia"]
[null,"Desenvolvimento de competências tecnológias internas"]
[null,"Desenvolvimento de capacidades de relacionamento com entidades do Sistema de I&I"]
[null,"(Re) definição de estratégia tecnológica e de I&D"]
[null,"(Re)definição da estratégia global da empresa"]
[null,"Criação de emprego altamente qualificado de nível 8 (doutorados)"]
[null,"Formação de Recursos humanos internos"]
[null,"Impacto ambiental"]

{"sheet":"Projeto 4","index":5,"n_rows":135,"n_cols":10,"rows_kept":135,"cut":false,"hidden":false,"merged":[[26,1,26,7],[9,1,9,7],[10,1,10,7],[11,1,11,7],[13,1,13,10],[15,1,15,7],[16,1,16,7],[17,1,17,7],[18,1,18,7],[19,1,19,7],[20,1,20,7],[25,1,25,7],[50,2,50,8],[27,1,27,7],[28,1,28,7],[33,1,33,7],[34,1,34,7],[35,1,35,7],[42,1,42,7],[43,1,43,7],[44,1,44,7],[45,1,45,7],[46,1,46,7],[49,2,49,8],[64,1,64,7],[51,2,51,8],[52,2,52,8],[53,2,53,8],[55,1,55,10],[57,1,57,7],[58,1,58,7],[59,1,59,7],[60,1,60,7],[61,1,61,7],[62,1,62,7],[63,1,63,7],[82,1,82,7],[65,1,65,7],[67,1,67,10],[69,1,69,7],[70,1,70,7],[71,1,71,7],[72,1,72,7],[73,1,73,7],[78,1,78,7],[79,1,79,7],[80,1,80,7],[81,1,81,7],[108,1,108,7],[87,1,87,7],[88,1,88,7],[89,1,89,7],[90,1,90,7],[91,1,91,7],[98,1,98,7],[99,1,99,7],[100,1,100,7],[101,1,101,7],[106,1,106,7],[107,1,107,7],[124,1,124,7],[109,1,109,7],[110,1,110,7],[111,1,111,7],[116,1,116,7],[117,1,117,7],[118,1,118,7],[119,1,119,7],[120,1,120,7],[121,1,121,7],[122,1,122,7],[123,1,123,7],[131,1,131,7],[132,1,132,7],[133,1,133,7],[134,1,134,7],[125,1,125,7],[126,1,126,7],[127,1,127,7],[128,1,128,7],[129,1,129,7],[130,1,130,7]]}
["Designação do Projeto",null,null,null,{"$f":"'Ident. Empresa'!$C$32","v":0}]
[]
["Responda às questões seguintes durante os 5 anos após a conclusão do projeto, assinalando as alterações entretanto ocorridas."]
[]
["1. Identifique a tipologia de projeto:"]
[]
[]
["1.1. Tratando-se de um \"Processo\", qual o grau de concretização do projeto? (Assinale com \"X\")"]
[]
[null,"Já está endogeneizado na empresa",null,null,null,null,null,null,null,{"$f":"IF(I10=\"X\",\"Siga para pergunta 2\",\"\")","v":""}]
[null,"Está em fase de endogeneização",null,null,null,null,null,null,null,{"$f":"IF(I11=\"X\",\"Siga para pergunta 2\",\"\")","v":""}]
[null,"O processo não foi endogeneizado",null,null,null,null,null,null,null,{"$f":"IF(I12=\"X\",\"Siga para pergunta 1.1.1\",\"\")","v":""}]
[]
[null,"1.1.1. Se o processo não foi endogeneizado, identifique os fatores que estão a dificultar ou impedi-la, classificando a respetiva importância (1=sem importância; 5=muito importante)"]
[]
[null,"Custos de implementação muito superiores aos esperados"]
[null,"Deficiências da empresa em termos de organização e gestão"]
[null,"Escassez de capitais para lançamento dos produtos produzidos com o novo processo"]
[null,"Dificuldade em proteger as inovações dos concorrentes"]
[null,"Falta de pessoal qualificado"]
[null,"Licenciamentos e autorizações"]
[]
[]
["1.2. Tratando-se de um \"Produto/Serviço\", qual o grau de concretização do projeto? (Assinale com\"X\")"]
[]
[null,"Protótipo laboratorial"]
[null,"Protótipo industrial"]
[null,"Disponível para demonstração"]
[null,"Desenvolvimentos adicionais"]
[null,"Pré-série"]
[]
[null,"1.2.1 Em relação aos mercados? (Selecione):"]
[]
[null,"Já está no mercado",null,null,null,null,null,null,null,{"$f":"IF(I34=\"X\",\"Siga para pergunta 1.2.1.1.\",\"\")","v":""}]
[null,"Já está concluído, mas ainda não está no mercado",null,null,null,null,null,null,null,{"$f":"IF(I35=\"X\",\"Siga para pergunta 1.2.1.2.\",\"\")","v":""}]
[null,"Não há intenção de avançar para a produção",null,null,null,null,null,null,null,{"$f":"IF(I36=\"X\",\"Siga para pergunta 1.2.1.3.\",\"\")","v":""}]
[]
[]
[null,"1.2.1.1. Se o produto já está no mercado, indique o ano e assinale com \"X\":"]
[]
[null,"Ano"]
[]
[null,"Produção própria"]
[null,"Produção por terceiros"]
[null,"Nova unidade"]
[null,"Nova linha de produção"]
[null,"Aumento da capacidade de produção"]
[]
[null,"Quais os principais setores clientes pela sua ordem crescente de importância? (lista CAEs)"]
[null,"1.º"]
[null,"2.º"]
[null,"3.º"]
[null,"4.º"]
[null,"5.º",null,null,null,null,null,null,null,"Siga para a pergunta 2."]
[]
[null,"1.2.1.2. Se o produto já está concluído mas ainda não está no mercado, qualifique (1=sem importância; 5=muito importante) os principais fatores que estão a dificultar a obtenção dos objetivos fixados:"]
[]
[null,"Capitais próprios e dificuldade de financiamento"]
[null,"Falta de pessoal qualificado (técnico, comercial, …)"]
[null,"Implementação das soluções"]
[null,"Obtenção de matérias primas e componentes"]
[null,"Licenciamentos e autorizações"]
[null,"Mercados e canais comerciais"]
[null,"Escassez de clientes"]
[null,"Pressão da concorrência"]
[null,"Risco de obsolescência do produto",null,null,null,null,null,null,null,"Siga para a pergunta 2."]
[]
[null,"1.2.1.3. Não há intenção de avançar para a produção pelas seguintes razões (assinale com ‘X’):"]
[]
[null,"Não existem resultados valorizáveis"]
[null,"Alteração da situação de mercado"]
[null,"Alterações de normas técnicas ou de certificação"]
[null,"Dificuldade em obter financiamento"]
[null,"Dificuldade nos circuitos de comercialização",null,null,null,null,null,null,null,"Siga para a pergunta 2."]
[]
[]
["2. Existem outras estratégias de valorização de resultados? (assinale com ‘X’) "]
[]
[null,"Joint-Venture"]
[null,"Novo projeto de I&D"]
[null,"Licença de produção"]
[null,"Acordo de representação"]
[null,"Transferência de tecnologia"]
[]
[]
["3. Diga qual o grau de inovação dos resultados do projeto relativamente a outros análogos (assinale com ‘X’)"]
[]
[null,"Aproximação do estado da arte internacional"]
[null,"Atingiu-se o estado da arte internacional"]
[null,"Avanço incremental"]
[null,"Avanço muito significativo"]
[null,"Inovação radical"]
[]
[]
["4. Foi efetuado algum pedido de registo de propriedade industrial? "]
[]
[null,"4.1. Se respondeu \"SIM\", identifique a tipologia (assinale com “X”):"]
[]
[null,"Patente"]
[null,"Marca"]
[null,"Design"]
[null,"Modelo de utilidade"]
[]
[]
[null,"4.2. Se respondeu \"NÃO\", qualifique (1=sem importância; 5=muito importante) os seguintes fatores:"]
[]
[null,"Resultados não são patenteáveis"]
[null,"Sistema de patentes não oferece proteção efetiva"]
[null,"Burocracia elevada"]
[null,"Custos demasiado elevados"]
[null,"A empresa desconhece vantagens efetivas do registo"]
[null,"Empresa dá preferência ao sigilo industrial"]
[]
[]
["5. Contribuição do projeto para outro tipo de benefícios. Identifique a intensidade entre "]
["(1=inexistente; 2=modesto; 3=razoável; 4=grande; 5=muito grande):"]
[null,"Melhorias de qualidade de produtos ou processos"]
[null,"Aumentos de produtividade ou melhoria de eficiência global"]
[null,"Melhoria de sistemas organizativos"]
[null,"Aumento da flexibilidade produtiva"]
[null,"Melhoria nas condições de trabalho e segurança"]
[null,"Melhor posicionamento e imagem no Mercado"]
[null,"Projeto decisivo para a sobrevivência / desenvolvimento da empresa"]
[null,"Ampliação da gama de produtos"]
[null,"Entrada em novos mercados"]
[null,"Substituição de importações"]
[null,"Substituição de produção realizada previamente sob licença"]
[null,"Redução da dependência em termos de aquisição de tecnologia"]
[null,"Desenvolvimento de competências tecnológias internas"]
[null,"Desenvolvimento de capacidades de relacionamento com entidades do Sistema de I&I"]
[null,"(Re) definição de estratégia tecnológica e de I&D"]
[null,"(Re)definição da estratégia global da empresa"]
[null,"Criação de emprego altamente qualificado de nível 8 (doutorados)"]
[null,"Formação de Recursos humanos internos"]
[null,"Impacto ambiental"]

{"sheet":"Projeto 5","index":6,"n_rows":135,"n_cols":10,"rows_kept":135,"cut":false,"hidden":false,"merged":[[26,1,26,7],[9,1,9,7],[10,1,10,7],[11,1,11,7],[13,1,13,10],[15,1,15,7],[16,1,16,7],[17,1,17,7],[18,1,18,7],[19,1,19,7],[20,1,20,7],[25,1,25,7],[50,2,50,8],[27,1,27,7],[28,1,28,7],[33,1,33,7],[34,1,34,7],[35,1,35,7],[42,1,42,7],[43,1,43,7],[44,1,44,7],[45,1,45,7],[46,1,46,7],[49,2,49,8],[64,1,64,7],[51,2,51,8],[52,2,52,8],[53,2,53,8],[55,1,55,10],[57,1,57,7],[58,1,58,7],[59,1,59,7],[60,1,60,7],[61,1,61,7],[62,1,62,7],[63,1,63,7],[82,1,82,7],[65,1,65,7],[67,1,67,10],[69,1,69,7],[70,1,70,7],[71,1,71,7],[72,1,72,7],[73,1,73,7],[78,1,78,7],[79,1,79,7],[80,1,80,7],[81,1,81,7],[108,1,108,7],[87,1,87,7],[88,1,88,7],[89,1,89,7],[90,1,90,7],[91,1,91,7],[98,1,98,7],[99,1,99,7],[100,1,100,7],[101,1,101,7],[106,1,106,7],[107,1,107,7],[124,1,124,7],[109,1,109,7],[110,1,110,7],[111,1,111,7],[116,1,116,7],[117,1,117,7],[118,1,118,7],[119,1,119,7],[120,1,120,7],[121,1,121,7],[122,1,122,7],[123,1,123,7],[131,1,131,7],[132,1,132,7],[133,1,133,7],[134,1,134,7],[125,1,125,7],[126,1,126,7],[127,1,127,7],[128,1,128,7],[129,1,129,7],[130,1,130,7]]}
["Designação do Projeto",null,null,null,{"$f":"'Ident. Empresa'!$C$33","v":0}]
[]
["Responda às questões seguintes durante os 5 anos após a conclusão do projeto, assinalando as alterações entretanto ocorridas."]
[]
["1. Identifique a tipologia de projeto:"]
[]
[]
["1.1. Tratando-se de um \"Processo\", qual o grau de concretização do projeto? (Assinale com \"X\")"]
[]
[null,"Já está endogeneizado na empresa",null,null,null,null,null,null,null,{"$f":"IF(I10=\"X\",\"Siga para pergunta 2\",\"\")","v":""}]
[null,"Está em fase de endogeneização",null,null,null,null,null,null,null,{"$f":"IF(I11=\"X\",\"Siga para pergunta 2\",\"\")","v":""}]
[null,"O processo não foi endogeneizado",null,null,null,null,null,null,null,{"$f":"IF(I12=\"X\",\"Siga para pergunta 1.1.1\",\"\")","v":""}]
[]
[null,"1.1.1. Se o processo não foi endogeneizado, identifique os fatores que estão a dificultar ou impedi-la, classificando a respetiva importância (1=sem importância; 5=muito importante)"]
[]
[null,"Custos de implementação muito superiores aos esperados"]
[null,"Deficiências da empresa em termos de organização e gestão"]
[null,"Escassez de capitais para lançamento dos produtos produzidos com o novo processo"]
[null,"Dificuldade em proteger as inovações dos concorrentes"]
[null,"Falta de pessoal qualificado"]
[null,"Licenciamentos e autorizações"]
[]
[]
["1.2. Tratando-se de um \"Produto/Serviço\", qual o grau de concretização do projeto? (Assinale com\"X\")"]
[]
[null,"Protótipo laboratorial"]
[null,"Protótipo industrial"]
[null,"Disponível para demonstração"]
[null,"Desenvolvimentos adicionais"]
[null,"Pré-série"]
[]
[null,"1.2.1 Em relação aos mercados? (Selecione):"]
[]
[null,"Já está no mercado",null,null,null,null,null,null,null,{"$f":"IF(I34=\"X\",\"Siga para pergunta 1.2.1.1.\",\"\")","v":""}]
[null,"Já está concluído, mas ainda não está no mercado",null,null,null,null,null,null,null,{"$f":"IF(I35=\"X\",\"Siga para pergunta 1.2.1.2.\",\"\")","v":""}]
[null,"Não há intenção de avançar para a produção",null,null,null,null,null,null,null,{"$f":"IF(I36=\"X\",\"Siga para pergunta 1.2.1.3.\",\"\")","v":""}]
[]
[]
[null,"1.2.1.1. Se o produto já está no mercado, indique o ano e assinale com \"X\":"]
[]
[null,"Ano"]
[]
[null,"Produção própria"]
[null,"Produção por terceiros"]
[null,"Nova unidade"]
[null,"Nova linha de produção"]
[null,"Aumento da capacidade de produção"]
[]
[null,"Quais os principais setores clientes pela sua ordem crescente de importância? (lista CAEs)"]
[null,"1.º"]
[null,"2.º"]
[null,"3.º"]
[null,"4.º"]
[null,"5.º",null,null,null,null,null,null,null,"Siga para a pergunta 2."]
[]
[null,"1.2.1.2. Se o produto já está concluído mas ainda não está no mercado, qualifique (1=sem importância; 5=muito importante) os principais fatores que estão a dificultar a obtenção dos objetivos fixados:"]
[]
[null,"Capitais próprios e dificuldade de financiamento"]
[null,"Falta de pessoal qualificado (técnico, comercial, …)"]
[null,"Implementação das soluções"]
[null,"Obtenção de matérias primas e componentes"]
[null,"Licenciamentos e autorizações"]
[null,"Mercados e canais comerciais"]
[null,"Escassez de clientes"]
[null,"Pressão da concorrência"]
[null,"Risco de obsolescência do produto",null,null,null,null,null,null,null,"Siga para a pergunta 2."]
[]
[null,"1.2.1.3. Não há intenção de avançar para a produção pelas seguintes razões (assinale com ‘X’):"]
[]
[null,"Não existem resultados valorizáveis"]
[null,"Alteração da situação de mercado"]
[null,"Alterações de normas técnicas ou de certificação"]
[null,"Dificuldade em obter financiamento"]
[null,"Dificuldade nos circuitos de comercialização",null,null,null,null,null,null,null,"Siga para a pergunta 2."]
[]
[]
["2. Existem outras estratégias de valorização de resultados? (assinale com ‘X’) "]
[]
[null,"Joint-Venture"]
[null,"Novo projeto de I&D"]
[null,"Licença de produção"]
[null,"Acordo de representação"]
[null,"Transferência de tecnologia"]
[]
[]
["3. Diga qual o grau de inovação dos resultados do projeto relativamente a outros análogos (assinale com ‘X’)"]
[]
[null,"Aproximação do estado da arte internacional"]
[null,"Atingiu-se o estado da arte internacional"]
[null,"Avanço incremental"]
[null,"Avanço muito significativo"]
[null,"Inovação radical"]
[]
[]
["4. Foi efetuado algum pedido de registo de propriedade industrial? "]
[]
[null,"4.1. Se respondeu \"SIM\", identifique a tipologia (assinale com “X”):"]
[]
[null,"Patente"]
[null,"Marca"]
[null,"Design"]
[null,"Modelo de utilidade"]
[]
[]
[null,"4.2. Se respondeu \"NÃO\", qualifique (1=sem importância; 5=muito importante) os seguintes fatores:"]
[]
[null,"Resultados não são patenteáveis"]
[null,"Sistema de patentes não oferece proteção efetiva"]
[null,"Burocracia elevada"]
[null,"Custos demasiado elevados"]
[null,"A empresa desconhece vantagens efetivas do registo"]
[null,"Empresa dá preferência ao sigilo industrial"]
[]
[]
["5. Contribuição do projeto para outro tipo de benefícios. Identifique a intensidade entre "]
["(1=inexistente; 2=modesto; 3=razoável; 4=grande; 5=muito grande):"]
[null,"Melhorias de qualidade de produtos ou processos"]
[null,"Aumentos de produtividade ou melhoria de eficiência global"]
[null,"Melhoria de sistemas organizativos"]
[null,"Aumento da flexibilidade produtiva"]
[null,"Melhoria nas condições de trabalho e segurança"]
[null,"Melhor posicionamento e imagem no Mercado"]
[null,"Projeto decisivo para a sobrevivência / desenvolvimento da empresa"]
[null,"Ampliação da gama de produtos"]
[null,"Entrada em novos mercados"]
[null,"Substituição de importações"]
[null,"Substituição de produção realizada previamente sob licença"]
[null,"Redução da dependência em termos de aquisição de tecnologia"]
[null,"Desenvolvimento de competências tecnológias internas"]
[null,"Desenvolvimento de capacidades de relacionamento com entidades do Sistema de I&I"]
[null,"(Re) definição de estratégia tecnológica e de I&D"]
[null,"(Re)definição da estratégia global da empresa"]
[null,"Criação de emprego altamente qualificado de nível 8 (doutorados)"]
[null,"Formação de Recursos humanos internos"]
[null,"Impacto ambiental"]

{"sheet":"Projeto 6","index":7,"n_rows":135,"n_cols":10,"rows_kept":135,"cut":false,"hidden":false,"merged":[[26,1,26,7],[9,1,9,7],[10,1,10,7],[11,1,11,7],[13,1,13,10],[15,1,15,7],[16,1,16,7],[17,1,17,7],[18,1,18,7],[19,1,19,7],[20,1,20,7],[25,1,25,7],[50,2,50,8],[27,1,27,7],[28,1,28,7],[33,1,33,7],[34,1,34,7],[35,1,35,7],[42,1,42,7],[43,1,43,7],[44,1,44,7],[45,1,45,7],[46,1,46,7],[49,2,49,8],[64,1,64,7],[51,2,51,8],[52,2,52,8],[53,2,53,8],[55,1,55,10],[57,1,57,7],[58,1,58,7],[59,1,59,7],[60,1,60,7],[61,1,61,7],[62,1,62,7],[63,1,63,7],[82,1,82,7],[65,1,65,7],[67,1,67,10],[69,1,69,7],[70,1,70,7],[71,1,71,7],[72,1,72,7],[73,1,73,7],[78,1,78,7],[79,1,79,7],[80,1,80,7],[81,1,81,7],[108,1,108,7],[87,1,87,7],[88,1,88,7],[89,1,89,7],[90,1,90,7],[91,1,91,7],[98,1,98,7],[99,1,99,7],[100,1,100,7],[101,1,101,7],[106,1,106,7],[107,1,107,7],[124,1,124,7],[109,1,109,7],[110,1,110,7],[111,1,111,7],[116,1,116,7],[117,1,117,7],[118,1,118,7],[119,1,119,7],[120,1,120,7],[121,1,121,7],[122,1,122,7],[123,1,123,7],[131,1,131,7],[132,1,132,7],[133,1,133,7],[134,1,134,7],[125,1,125,7],[126,1,126,7],[127,1,127,7],[128,1,128,7],[129,1,129,7],[130,1,130,7]]}
["Designação do Projeto",null,null,null,{"$f":"'Ident. Empresa'!$C$34","v":0}]
[]
["Responda às questões seguintes durante os 5 anos após a conclusão do projeto, assinalando as alterações entretanto ocorridas."]
[]
["1. Identifique a tipologia de projeto:"]
[]
[]
["1.1. Tratando-se de um \"Processo\", qual o grau de concretização do projeto? (Assinale com \"X\")"]
[]
[null,"Já está endogeneizado na empresa",null,null,null,null,null,null,null,{"$f":"IF(I10=\"X\",\"Siga para pergunta 2\",\"\")","v":""}]
[null,"Está em fase de endogeneização",null,null,null,null,null,null,null,{"$f":"IF(I11=\"X\",\"Siga para pergunta 2\",\"\")","v":""}]
[null,"O processo não foi endogeneizado",null,null,null,null,null,null,null,{"$f":"IF(I12=\"X\",\"Siga para pergunta 1.1.1\",\"\")","v":""}]
[]
[null,"1.1.1. Se o processo não foi endogeneizado, identifique os fatores que estão a dificultar ou impedi-la, classificando a respetiva importância (1=sem importância; 5=muito importante)"]
[]
[null,"Custos de implementação muito superiores aos esperados"]
[null,"Deficiências da empresa em termos de organização e gestão"]
[null,"Escassez de capitais para lançamento dos produtos produzidos com o novo processo"]
[null,"Dificuldade em proteger as inovações dos concorrentes"]
[null,"Falta de pessoal qualificado"]
[null,"Licenciamentos e autorizações"]
[]
[]
["1.2. Tratando-se de um \"Produto/Serviço\", qual o grau de concretização do projeto? (Assinale com\"X\")"]
[]
[null,"Protótipo laboratorial"]
[null,"Protótipo industrial"]
[null,"Disponível para demonstração"]
[null,"Desenvolvimentos adicionais"]
[null,"Pré-série"]
[]
[null,"1.2.1 Em relação aos mercados? (Selecione):"]
[]
[null,"Já está no mercado",null,null,null,null,null,null,null,{"$f":"IF(I34=\"X\",\"Siga para pergunta 1.2.1.1.\",\"\")","v":""}]
[null,"Já está concluído, mas ainda não está no mercado",null,null,null,null,null,null,null,{"$f":"IF(I35=\"X\",\"Siga para pergunta 1.2.1.2.\",\"\")","v":""}]
[null,"Não há intenção de avançar para a produção",null,null,null,null,null,null,null,{"$f":"IF(I36=\"X\",\"Siga para pergunta 1.2.1.3.\",\"\")","v":""}]
[]
[]
[null,"1.2.1.1. Se o produto já está no mercado, indique o ano e assinale com \"X\":"]
[]
[null,"Ano"]
[]
[null,"Produção própria"]
[null,"Produção por terceiros"]
[null,"Nova unidade"]
[null,"Nova linha de produção"]
[null,"Aumento da capacidade de produção"]
[]
[null,"Quais os principais setores clientes pela sua ordem crescente de importância? (lista CAEs)"]
[null,"1.º"]
[null,"2.º"]
[null,"3.º"]
[null,"4.º"]
[null,"5.º",null,null,null,null,null,null,null,"Siga para a pergunta 2."]
[]
[null,"1.2.1.2. Se o produto já está concluído mas ainda não está no mercado, qualifique (1=sem importância; 5=muito importante) os principais fatores que estão a dificultar a obtenção dos objetivos fixados:"]
[]
[null,"Capitais próprios e dificuldade de financiamento"]
[null,"Falta de pessoal qualificado (técnico, comercial, …)"]
[null,"Implementação das soluções"]
[null,"Obtenção de matérias primas e componentes"]
[null,"Licenciamentos e autorizações"]
[null,"Mercados e canais comerciais"]
[null,"Escassez de clientes"]
[null,"Pressão da concorrência"]
[null,"Risco de obsolescência do produto",null,null,null,null,null,null,null,"Siga para a pergunta 2."]
[]
[null,"1.2.1.3. Não há intenção de avançar para a produção pelas seguintes razões (assinale com ‘X’):"]
[]
[null,"Não existem resultados valorizáveis"]
[null,"Alteração da situação de mercado"]
[null,"Alterações de normas técnicas ou de certificação"]
[null,"Dificuldade em obter financiamento"]
[null,"Dificuldade nos circuitos de comercialização",null,null,null,null,null,null,null,"Siga para a pergunta 2."]
[]
[]
["2. Existem outras estratégias de valorização de resultados? (assinale com ‘X’) "]
[]
[null,"Joint-Venture"]
[null,"Novo projeto de I&D"]
[null,"Licença de produção"]
[null,"Acordo de representação"]
[null,"Transferência de tecnologia"]
[]
[]
["3. Diga qual o grau de inovação dos resultados do projeto relativamente a outros análogos (assinale com ‘X’)"]
[]
[null,"Aproximação do estado da arte internacional"]
[null,"Atingiu-se o estado da arte internacional"]
[null,"Avanço incremental"]
[null,"Avanço muito significativo"]
[null,"Inovação radical"]
[]
[]
["4. Foi efetuado algum pedido de registo de propriedade industrial? "]
[]
[null,"4.1. Se respondeu \"SIM\", identifique a tipologia (assinale com “X”):"]
[]
[null,"Patente"]
[null,"Marca"]
[null,"Design"]
[null,"Modelo de utilidade"]
[]
[]
[null,"4.2. Se respondeu \"NÃO\", qualifique (1=sem importância; 5=muito importante) os seguintes fatores:"]
[]
[null,"Resultados não são patenteáveis"]
[null,"Sistema de patentes não oferece proteção efetiva"]
[null,"Burocracia elevada"]
[null,"Custos demasiado elevados"]
[null,"A empresa desconhece vantagens efetivas do registo"]
[null,"Empresa dá preferência ao sigilo industrial"]
[]
[]
["5. Contribuição do projeto para outro tipo de benefícios. Identifique a intensidade entre "]
["(1=inexistente; 2=modesto; 3=razoável; 4=grande; 5=muito grande):"]
[null,"Melhorias de qualidade de produtos ou processos"]
[null,"Aumentos de produtividade ou melhoria de eficiência global"]
[null,"Melhoria de sistemas organizativos"]
[null,"Aumento da flexibilidade produtiva"]
[null,"Melhoria nas condições de trabalho e segurança"]
[null,"Melhor posicionamento e imagem no Mercado"]
[null,"Projeto decisivo para a sobrevivência / desenvolvimento da empresa"]
[null,"Ampliação da gama de produtos"]
[null,"Entrada em novos mercados"]
[null,"Substituição de importações"]
[null,"Substituição de produção realizada previamente sob licença"]
[null,"Redução da dependência em termos de aquisição de tecnologia"]
[null,"Desenvolvimento de competências tecnológias internas"]
[null,"Desenvolvimento de capacidades de relacionamento com entidades do Sistema de I&I"]
[null,"(Re) definição de estratégia tecnológica e de I&D"]
[null,"(Re)definição da estratégia global da empresa"]
[null,"Criação de emprego altamente qualificado de nível 8 (doutorados)"]
[null,"Formação de Recursos humanos internos"]
[null,"Impacto ambiental"]

{"sheet":"Projeto 7","index":8,"n_rows":135,"n_cols":10,"rows_kept":135,"cut":false,"hidden":false,"merged":[[26,1,26,7],[9,1,9,7],[10,1,10,7],[11,1,11,7],[13,1,13,10],[15,1,15,7],[16,1,16,7],[17,1,17,7],[18,1,18,7],[19,1,19,7],[20,1,20,7],[25,1,25,7],[50,2,50,8],[27,1,27,7],[28,1,28,7],[33,1,33,7],[34,1,34,7],[35,1,35,7],[42,1,42,7],[43,1,43,7],[44,1,44,7],[45,1,45,7],[46,1,46,7],[49,2,49,8],[64,1,64,7],[51,2,51,8],[52,2,52,8],[53,2,53,8],[55,1,55,10],[57,1,57,7],[58,1,58,7],[59,1,59,7],[60,1,60,7],[61,1,61,7],[62,1,62,7],[63,1,63,7],[82,1,82,7],[65,1,65,7],[67,1,67,10],[69,1,69,7],[70,1,70,7],[71,1,71,7],[72,1,72,7],[73,1,73,7],[78,1,78,7],[79,1,79,7],[80,1,80,7],[81,1,81,7],[108,1,108,7],[87,1,87,7],[88,1,88,7],[89,1,89,7],[90,1,90,7],[91,1,91,7],[98,1,98,7],[99,1,99,7],[100,1,100,7],[101,1,101,7],[106,1,106,7],[107,1,107,7],[124,1,124,7],[109,1,109,7],[110,1,110,7],[111,1,111,7],[116,1,116,7],[117,1,117,7],[118,1,118,7],[119,1,119,7],[120,1,120,7],[121,1,121,7],[122,1,122,7],[123,1,123,7],[131,1,131,7],[132,1,132,7],[133,1,133,7],[134,1,134,7],[125,1,125,7],[126,1,126,7],[127,1,127,7],[128,1,128,7],[129,1,129,7],[130,1,130,7]]}
["Designação do Projeto",null,null,null,{"$f":"'Ident. Empresa'!$C$35","v":0}]
[]
["Responda às questões seguintes durante os 5 anos após a conclusão do projeto, assinalando as alterações entretanto ocorridas."]
[]
["1. Identifique a tipologia de projeto:"]
[]
[]
["1.1. Tratando-se de um \"Processo\", qual o grau de concretização do projeto? (Assinale com \"X\")"]
[]
[null,"Já está endogeneizado na empresa",null,null,null,null,null,null,null,{"$f":"IF(I10=\"X\",\"Siga para pergunta 2\",\"\")","v":""}]
[null,"Está em fase de endogeneização",null,null,null,null,null,null,null,{"$f":"IF(I11=\"X\",\"Siga para pergunta 2\",\"\")","v":""}]
[null,"O processo não foi endogeneizado",null,null,null,null,null,null,null,{"$f":"IF(I12=\"X\",\"Siga para pergunta 1.1.1\",\"\")","v":""}]
[]
[null,"1.1.1. Se o processo não foi endogeneizado, identifique os fatores que estão a dificultar ou impedi-la, classificando a respetiva importância (1=sem importância; 5=muito importante)"]
[]
[null,"Custos de implementação muito superiores aos esperados"]
[null,"Deficiências da empresa em termos de organização e gestão"]
[null,"Escassez de capitais para lançamento dos produtos produzidos com o novo processo"]
[null,"Dificuldade em proteger as inovações dos concorrentes"]
[null,"Falta de pessoal qualificado"]
[null,"Licenciamentos e autorizações"]
[]
[]
["1.2. Tratando-se de um \"Produto/Serviço\", qual o grau de concretização do projeto? (Assinale com\"X\")"]
[]
[null,"Protótipo laboratorial"]
[null,"Protótipo industrial"]
[null,"Disponível para demonstração"]
[null,"Desenvolvimentos adicionais"]
[null,"Pré-série"]
[]
[null,"1.2.1 Em relação aos mercados? (Selecione):"]
[]
[null,"Já está no mercado",null,null,null,null,null,null,null,{"$f":"IF(I34=\"X\",\"Siga para pergunta 1.2.1.1.\",\"\")","v":""}]
[null,"Já está concluído, mas ainda não está no mercado",null,null,null,null,null,null,null,{"$f":"IF(I35=\"X\",\"Siga para pergunta 1.2.1.2.\",\"\")","v":""}]
[null,"Não há intenção de avançar para a produção",null,null,null,null,null,null,null,{"$f":"IF(I36=\"X\",\"Siga para pergunta 1.2.1.3.\",\"\")","v":""}]
[]
[]
[null,"1.2.1.1. Se o produto já está no mercado, indique o ano e assinale com \"X\":"]
[]
[null,"Ano"]
[]
[null,"Produção própria"]
[null,"Produção por terceiros"]
[null,"Nova unidade"]
[null,"Nova linha de produção"]
[null,"Aumento da capacidade de produção"]
[]
[null,"Quais os principais setores clientes pela sua ordem crescente de importância? (lista CAEs)"]
[null,"1.º"]
[null,"2.º"]
[null,"3.º"]
[null,"4.º"]
[null,"5.º",null,null,null,null,null,null,null,"Siga para a pergunta 2."]
[]
[null,"1.2.1.2. Se o produto já está concluído mas ainda não está no mercado, qualifique (1=sem importância; 5=muito importante) os principais fatores que estão a dificultar a obtenção dos objetivos fixados:"]
[]
[null,"Capitais próprios e dificuldade de financiamento"]
[null,"Falta de pessoal qualificado (técnico, comercial, …)"]
[null,"Implementação das soluções"]
[null,"Obtenção de matérias primas e componentes"]
[null,"Licenciamentos e autorizações"]
[null,"Mercados e canais comerciais"]
[null,"Escassez de clientes"]
[null,"Pressão da concorrência"]
[null,"Risco de obsolescência do produto",null,null,null,null,null,null,null,"Siga para a pergunta 2."]
[]
[null,"1.2.1.3. Não há intenção de avançar para a produção pelas seguintes razões (assinale com ‘X’):"]
[]
[null,"Não existem resultados valorizáveis"]
[null,"Alteração da situação de mercado"]
[null,"Alterações de normas técnicas ou de certificação"]
[null,"Dificuldade em obter financiamento"]
[null,"Dificuldade nos circuitos de comercialização",null,null,null,null,null,null,null,"Siga para a pergunta 2."]
[]
[]
["2. Existem outras estratégias de valorização de resultados? (assinale com ‘X’) "]
[]
[null,"Joint-Venture"]
[null,"Novo projeto de I&D"]
[null,"Licença de produção"]
[null,"Acordo de representação"]
[null,"Transferência de tecnologia"]
[]
[]
["3. Diga qual o grau de inovação dos resultados do projeto relativamente a outros análogos (assinale com ‘X’)"]
[]
[null,"Aproximação do estado da arte internacional"]
[null,"Atingiu-se o estado da arte internacional"]
[null,"Avanço incremental"]
[null,"Avanço muito significativo"]
[null,"Inovação radical"]
[]
[]
["4. Foi efetuado algum pedido de registo de propriedade industrial? "]
[]
[null,"4.1. Se respondeu \"SIM\", identifique a tipologia (assinale com “X”):"]
[]
[null,"Patente"]
[null,"Marca"]
[null,"Design"]
[null,"Modelo de utilidade"]
[]
[]
[null,"4.2. Se respondeu \"NÃO\", qualifique (1=sem importância; 5=muito importante) os seguintes fatores:"]
[]
[null,"Resultados não são patenteáveis"]
[null,"Sistema de patentes não oferece proteção efetiva"]
[null,"Burocracia elevada"]
[null,"Custos demasiado elevados"]
[null,"A empresa desconhece vantagens efetivas do registo"]
[null,"Empresa dá preferência ao sigilo industrial"]
[]
[]
["5. Contribuição do projeto para outro tipo de benefícios. Identifique a intensidade entre "]
["(1=inexistente; 2=modesto; 3=razoável; 4=grande; 5=muito grande):"]
[null,"Melhorias de qualidade de produtos ou processos"]
[null,"Aumentos de produtividade ou melhoria de eficiência global"]
[null,"Melhoria de sistemas organizativos"]
[null,"Aumento da flexibilidade produtiva"]
[null,"Melhoria nas condições de trabalho e segurança"]
[null,"Melhor posicionamento e imagem no Mercado"]
[null,"Projeto decisivo para a sobrevivência / desenvolvimento da empresa"]
[null,"Ampliação da gama de produtos"]
[null,"Entrada em novos mercados"]
[null,"Substituição de importações"]
[null,"Substituição de produção realizada previamente sob licença"]
[null,"Redução da dependência em termos de aquisição de tecnologia"]
[null,"Desenvolvimento de competências tecnológias internas"]
[null,"Desenvolvimento de capacidades de relacionamento com entidades do Sistema de I&I"]
[null,"(Re) definição de estratégia tecnológica e de I&D"]
[null,"(Re)definição da estratégia global da empresa"]
[null,"Criação de emprego altamente qualificado de nível 8 (doutorados)"]
[null,"Formação de Recursos humanos internos"]
[null,"Impacto ambiental"]

{"sheet":"Projeto 8","index":9,"n_rows":135,"n_cols":10,"rows_kept":135,"cut":false,"hidden":false,"merged":[[26,1,26,7],[9,1,9,7],[10,1,10,7],[11,1,11,7],[13,1,13,10],[15,1,15,7],[16,1,16,7],[17,1,17,7],[18,1,18,7],[19,1,19,7],[20,1,20,7],[25,1,25,7],[50,2,50,8],[27,1,27,7],[28,1,28,7],[33,1,33,7],[34,1,34,7],[35,1,35,7],[42,1,42,7],[43,1,43,7],[44,1,44,7],[45,1,45,7],[46,1,46,7],[49,2,49,8],[64,1,64,7],[51,2,51,8],[52,2,52,8],[53,2,53,8],[55,1,55,10],[57,1,57,7],[58,1,58,7],[59,1,59,7],[60,1,60,7],[61,1,61,7],[62,1,62,7],[63,1,63,7],[82,1,82,7],[65,1,65,7],[67,1,67,10],[69,1,69,7],[70,1,70,7],[71,1,71,7],[72,1,72,7],[73,1,73,7],[78,1,78,7],[79,1,79,7],[80,1,80,7],[81,1,81,7],[108,1,108,7],[87,1,87,7],[88,1,88,7],[89,1,89,7],[90,1,90,7],[91,1,91,7],[98,1,98,7],[99,1,99,7],[100,1,100,7],[101,1,101,7],[106,1,106,7],[107,1,107,7],[124,1,124,7],[109,1,109,7],[110,1,110,7],[111,1,111,7],[116,1,116,7],[117,1,117,7],[118,1,118,7],[119,1,119,7],[120,1,120,7],[121,1,121,7],[122,1,122,7],[123,1,123,7],[131,1,131,7],[132,1,132,7],[133,1,133,7],[134,1,134,7],[125,1,125,7],[126,1,126,7],[127,1,127,7],[128,1,128,7],[129,1,129,7],[130,1,130,7]]}
["Designação do Projeto",null,null,null,{"$f":"'Ident. Empresa'!$C$36","v":0}]
[]
["Responda às questões seguintes durante os 5 anos após a conclusão do projeto, assinalando as alterações entretanto ocorridas."]
[]
["1. Identifique a tipologia de projeto:"]
[]
[]
["1.1. Tratando-se de um \"Processo\", qual o grau de concretização do projeto? (Assinale com \"X\")"]
[]
[null,"Já está endogeneizado na empresa",null,null,null,null,null,null,null,{"$f":"IF(I10=\"X\",\"Siga para pergunta 2\",\"\")","v":""}]
[null,"Está em fase de endogeneização",null,null,null,null,null,null,null,{"$f":"IF(I11=\"X\",\"Siga para pergunta 2\",\"\")","v":""}]
[null,"O processo não foi endogeneizado",null,null,null,null,null,null,null,{"$f":"IF(I12=\"X\",\"Siga para pergunta 1.1.1\",\"\")","v":""}]
[]
[null,"1.1.1. Se o processo não foi endogeneizado, identifique os fatores que estão a dificultar ou impedi-la, classificando a respetiva importância (1=sem importância; 5=muito importante)"]
[]
[null,"Custos de implementação muito superiores aos esperados"]
[null,"Deficiências da empresa em termos de organização e gestão"]
[null,"Escassez de capitais para lançamento dos produtos produzidos com o novo processo"]
[null,"Dificuldade em proteger as inovações dos concorrentes"]
[null,"Falta de pessoal qualificado"]
[null,"Licenciamentos e autorizações"]
[]
[]
["1.2. Tratando-se de um \"Produto/Serviço\", qual o grau de concretização do projeto? (Assinale com\"X\")"]
[]
[null,"Protótipo laboratorial"]
[null,"Protótipo industrial"]
[null,"Disponível para demonstração"]
[null,"Desenvolvimentos adicionais"]
[null,"Pré-série"]
[]
[null,"1.2.1 Em relação aos mercados? (Selecione):"]
[]
[null,"Já está no mercado",null,null,null,null,null,null,null,{"$f":"IF(I34=\"X\",\"Siga para pergunta 1.2.1.1.\",\"\")","v":""}]
[null,"Já está concluído, mas ainda não está no mercado",null,null,null,null,null,null,null,{"$f":"IF(I35=\"X\",\"Siga para pergunta 1.2.1.2.\",\"\")","v":""}]
[null,"Não há intenção de avançar para a produção",null,null,null,null,null,null,null,{"$f":"IF(I36=\"X\",\"Siga para pergunta 1.2.1.3.\",\"\")","v":""}]
[]
[]
[null,"1.2.1.1. Se o produto já está no mercado, indique o ano e assinale com \"X\":"]
[]
[null,"Ano"]
[]
[null,"Produção própria"]
[null,"Produção por terceiros"]
[null,"Nova unidade"]
[null,"Nova linha de produção"]
[null,"Aumento da capacidade de produção"]
[]
[null,"Quais os principais setores clientes pela sua ordem crescente de importância? (lista CAEs)"]
[null,"1.º"]
[null,"2.º"]
[null,"3.º"]
[null,"4.º"]
[null,"5.º",null,null,null,null,null,null,null,"Siga para a pergunta 2."]
[]
[null,"1.2.1.2. Se o produto já está concluído mas ainda não está no mercado, qualifique (1=sem importância; 5=muito importante) os principais fatores que estão a dificultar a obtenção dos objetivos fixados:"]
[]
[null,"Capitais próprios e dificuldade de financiamento"]
[null,"Falta de pessoal qualificado (técnico, comercial, …)"]
[null,"Implementação das soluções"]
[null,"Obtenção de matérias primas e componentes"]
[null,"Licenciamentos e autorizações"]
[null,"Mercados e canais comerciais"]
[null,"Escassez de clientes"]
[null,"Pressão da concorrência"]
[null,"Risco de obsolescência do produto",null,null,null,null,null,null,null,"Siga para a pergunta 2."]
[]
[null,"1.2.1.3. Não há intenção de avançar para a produção pelas seguintes razões (assinale com ‘X’):"]
[]
[null,"Não existem resultados valorizáveis"]
[null,"Alteração da situação de mercado"]
[null,"Alterações de normas técnicas ou de certificação"]
[null,"Dificuldade em obter financiamento"]
[null,"Dificuldade nos circuitos de comercialização",null,null,null,null,null,null,null,"Siga para a pergunta 2."]
[]
[]
["2. Existem outras estratégias de valorização de resultados? (assinale com ‘X’) "]
[]
[null,"Joint-Venture"]
[null,"Novo projeto de I&D"]
[null,"Licença de produção"]
[null,"Acordo de representação"]
[null,"Transferência de tecnologia"]
[]
[]
["3. Diga qual o grau de inovação dos resultados do projeto relativamente a outros análogos (assinale com ‘X’)"]
[]
[null,"Aproximação do estado da arte internacional"]
[null,"Atingiu-se o estado da arte internacional"]
[null,"Avanço incremental"]
[null,"Avanço muito significativo"]
[null,"Inovação radical"]
[]
[]
["4. Foi efetuado algum pedido de registo de propriedade industrial? "]
[]
[null,"4.1. Se respondeu \"SIM\", identifique a tipologia (assinale com “X”):"]
[]
[null,"Patente"]
[null,"Marca"]
[null,"Design"]
[null,"Modelo de utilidade"]
[]
[]
[null,"4.2. Se respondeu \"NÃO\", qualifique (1=sem importância; 5=muito importante) os seguintes fatores:"]
[]
[null,"Resultados não são patenteáveis"]
[null,"Sistema de patentes não oferece proteção efetiva"]
[null,"Burocracia elevada"]
[null,"Custos demasiado elevados"]
[null,"A empresa desconhece vantagens efetivas do registo"]
[null,"Empresa dá preferência ao sigilo industrial"]
[]
[]
["5. Contribuição do projeto para outro tipo de benefícios. Identifique a intensidade entre "]
["(1=inexistente; 2=modesto; 3=razoável; 4=grande; 5=muito grande):"]
[null,"Melhorias de qualidade de produtos ou processos"]
[null,"Aumentos de produtividade ou melhoria de eficiência global"]
[null,"Melhoria de sistemas organizativos"]
[null,"Aumento da flexibilidade produtiva"]
[null,"Melhoria nas condições de trabalho e segurança"]
[null,"Melhor posicionamento e imagem no Mercado"]
[null,"Projeto decisivo para a sobrevivência / desenvolvimento da empresa"]
[null,"Ampliação da gama de produtos"]
[null,"Entrada em novos mercados"]
[null,"Substituição de importações"]
[null,"Substituição de produção realizada previamente sob licença"]
[null,"Redução da dependência em termos de aquisição de tecnologia"]
[null,"Desenvolvimento de competências tecnológias internas"]
[null,"Desenvolvimento de capacidades de relacionamento com entidades do Sistema de I&I"]
[null,"(Re) definição de estratégia tecnológica e de I&D"]
[null,"(Re)definição da estratégia global da empresa"]
[null,"Criação de emprego altamente qualificado de nível 8 (doutorados)"]
[null,"Formação de Recursos humanos internos"]
[null,"Impacto ambiental"]

{"sheet":"Projeto 9","index":10,"n_rows":135,"n_cols":10,"rows_kept":135,"cut":false,"hidden":false,"merged":[[26,1,26,7],[9,1,9,7],[10,1,10,7],[11,1,11,7],[13,1,13,10],[15,1,15,7],[16,1,16,7],[17,1,17,7],[18,1,18,7],[19,1,19,7],[20,1,20,7],[25,1,25,7],[50,2,50,8],[27,1,27,7],[28,1,28,7],[33,1,33,7],[34,1,34,7],[35,1,35,7],[42,1,42,7],[43,1,43,7],[44,1,44,7],[45,1,45,7],[46,1,46,7],[49,2,49,8],[64,1,64,7],[51,2,51,8],[52,2,52,8],[53,2,53,8],[55,1,55,10],[57,1,57,7],[58,1,58,7],[59,1,59,7],[60,1,60,7],[61,1,61,7],[62,1,62,7],[63,1,63,7],[82,1,82,7],[65,1,65,7],[67,1,67,10],[69,1,69,7],[70,1,70,7],[71,1,71,7],[72,1,72,7],[73,1,73,7],[78,1,78,7],[79,1,79,7],[80,1,80,7],[81,1,81,7],[108,1,108,7],[87,1,87,7],[88,1,88,7],[89,1,89,7],[90,1,90,7],[91,1,91,7],[98,1,98,7],[99,1,99,7],[100,1,100,7],[101,1,101,7],[106,1,106,7],[107,1,107,7],[124,1,124,7],[109,1,109,7],[110,1,110,7],[111,1,111,7],[116,1,116,7],[117,1,117,7],[118,1,118,7],[119,1,119,7],[120,1,120,7],[121,1,121,7],[122,1,122,7],[123,1,123,7],[131,1,131,7],[132,1,132,7],[133,1,133,7],[134,1,134,7],[125,1,125,7],[126,1,126,7],[127,1,127,7],[128,1,128,7],[129,1,129,7],[130,1,130,7]]}
["Designação do Projeto",null,null,null,{"$f":"'Ident. Empresa'!$C$37","v":0}]
[]
["Responda às questões seguintes durante os 5 anos após a conclusão do projeto, assinalando as alterações entretanto ocorridas."]
[]
["1. Identifique a tipologia de projeto:"]
[]
[]
["1.1. Tratando-se de um \"Processo\", qual o grau de concretização do projeto? (Assinale com \"X\")"]
[]
[null,"Já está endogeneizado na empresa",null,null,null,null,null,null,null,{"$f":"IF(I10=\"X\",\"Siga para pergunta 2\",\"\")","v":""}]
[null,"Está em fase de endogeneização",null,null,null,null,null,null,null,{"$f":"IF(I11=\"X\",\"Siga para pergunta 2\",\"\")","v":""}]
[null,"O processo não foi endogeneizado",null,null,null,null,null,null,null,{"$f":"IF(I12=\"X\",\"Siga para pergunta 1.1.1\",\"\")","v":""}]
[]
[null,"1.1.1. Se o processo não foi endogeneizado, identifique os fatores que estão a dificultar ou impedi-la, classificando a respetiva importância (1=sem importância; 5=muito importante)"]
[]
[null,"Custos de implementação muito superiores aos esperados"]
[null,"Deficiências da empresa em termos de organização e gestão"]
[null,"Escassez de capitais para lançamento dos produtos produzidos com o novo processo"]
[null,"Dificuldade em proteger as inovações dos concorrentes"]
[null,"Falta de pessoal qualificado"]
[null,"Licenciamentos e autorizações"]
[]
[]
["1.2. Tratando-se de um \"Produto/Serviço\", qual o grau de concretização do projeto? (Assinale com\"X\")"]
[]
[null,"Protótipo laboratorial"]
[null,"Protótipo industrial"]
[null,"Disponível para demonstração"]
[null,"Desenvolvimentos adicionais"]
[null,"Pré-série"]
[]
[null,"1.2.1 Em relação aos mercados? (Selecione):"]
[]
[null,"Já está no mercado",null,null,null,null,null,null,null,{"$f":"IF(I34=\"X\",\"Siga para pergunta 1.2.1.1.\",\"\")","v":""}]
[null,"Já está concluído, mas ainda não está no mercado",null,null,null,null,null,null,null,{"$f":"IF(I35=\"X\",\"Siga para pergunta 1.2.1.2.\",\"\")","v":""}]
[null,"Não há intenção de avançar para a produção",null,null,null,null,null,null,null,{"$f":"IF(I36=\"X\",\"Siga para pergunta 1.2.1.3.\",\"\")","v":""}]
[]
[]
[null,"1.2.1.1. Se o produto já está no mercado, indique o ano e assinale com \"X\":"]
[]
[null,"Ano"]
[]
[null,"Produção própria"]
[null,"Produção por terceiros"]
[null,"Nova unidade"]
[null,"Nova linha de produção"]
[null,"Aumento da capacidade de produção"]
[]
[null,"Quais os principais setores clientes pela sua ordem crescente de importância? (lista CAEs)"]
[null,"1.º"]
[null,"2.º"]
[null,"3.º"]
[null,"4.º"]
[null,"5.º",null,null,null,null,null,null,null,"Siga para a pergunta 2."]
[]
[null,"1.2.1.2. Se o produto já está concluído mas ainda não está no mercado, qualifique (1=sem importância; 5=muito importante) os principais fatores que estão a dificultar a obtenção dos objetivos fixados:"]
[]
[null,"Capitais próprios e dificuldade de financiamento"]
[null,"Falta de pessoal qualificado (técnico, comercial, …)"]
[null,"Implementação das soluções"]
[null,"Obtenção de matérias primas e componentes"]
[null,"Licenciamentos e autorizações"]
[null,"Mercados e canais comerciais"]
[null,"Escassez de clientes"]
[null,"Pressão da concorrência"]
[null,"Risco de obsolescência do produto",null,null,null,null,null,null,null,"Siga para a pergunta 2."]
[]
[null,"1.2.1.3. Não há intenção de avançar para a produção pelas seguintes razões (assinale com ‘X’):"]
[]
[null,"Não existem resultados valorizáveis"]
[null,"Alteração da situação de mercado"]
[null,"Alterações de normas técnicas ou de certificação"]
[null,"Dificuldade em obter financiamento"]
[null,"Dificuldade nos circuitos de comercialização",null,null,null,null,null,null,null,"Siga para a pergunta 2."]
[]
[]
["2. Existem outras estratégias de valorização de resultados? (assinale com ‘X’) "]
[]
[null,"Joint-Venture"]
[null,"Novo projeto de I&D"]
[null,"Licença de produção"]
[null,"Acordo de representação"]
[null,"Transferência de tecnologia"]
[]
[]
["3. Diga qual o grau de inovação dos resultados do projeto relativamente a outros análogos (assinale com ‘X’)"]
[]
[null,"Aproximação do estado da arte internacional"]
[null,"Atingiu-se o estado da arte internacional"]
[null,"Avanço incremental"]
[null,"Avanço muito significativo"]
[null,"Inovação radical"]
[]
[]
["4. Foi efetuado algum pedido de registo de propriedade industrial? "]
[]
[null,"4.1. Se respondeu \"SIM\", identifique a tipologia (assinale com “X”):"]
[]
[null,"Patente"]
[null,"Marca"]
[null,"Design"]
[null,"Modelo de utilidade"]
[]
[]
[null,"4.2. Se respondeu \"NÃO\", qualifique (1=sem importância; 5=muito importante) os seguintes fatores:"]
[]
[null,"Resultados não são patenteáveis"]
[null,"Sistema de patentes não oferece proteção efetiva"]
[null,"Burocracia elevada"]
[null,"Custos demasiado elevados"]
[null,"A empresa desconhece vantagens efetivas do registo"]
[null,"Empresa dá preferência ao sigilo industrial"]
[]
[]
["5. Contribuição do projeto para outro tipo de benefícios. Identifique a intensidade entre "]
["(1=inexistente; 2=modesto; 3=razoável; 4=grande; 5=muito grande):"]
[null,"Melhorias de qualidade de produtos ou processos"]
[null,"Aumentos de produtividade ou melhoria de eficiência global"]
[null,"Melhoria de sistemas organizativos"]
[null,"Aumento da flexibilidade produtiva"]
[null,"Melhoria nas condições de trabalho e segurança"]
[null,"Melhor posicionamento e imagem no Mercado"]
[null,"Projeto decisivo para a sobrevivência / desenvolvimento da empresa"]
[null,"Ampliação da gama de produtos"]
[null,"Entrada em novos mercados"]
[null,"Substituição de importações"]
[null,"Substituição de produção realizada previamente sob licença"]
[null,"Redução da dependência em termos de aquisição de tecnologia"]
[null,"Desenvolvimento de competências tecnológias internas"]
[null,"Desenvolvimento de capacidades de relacionamento com entidades do Sistema de I&I"]
[null,"(Re) definição de estratégia tecnológica e de I&D"]
[null,"(Re)definição da estratégia global da empresa"]
[null,"Criação de emprego altamente qualificado de nível 8 (doutorados)"]
[null,"Formação de Recursos humanos internos"]
[null,"Impacto ambiental"]

{"sheet":"Projeto 10","index":11,"n_rows":135,"n_cols":10,"rows_kept":135,"cut":false,"hidden":false,"merged":[[26,1,26,7],[9,1,9,7],[10,1,10,7],[11,1,11,7],[13,1,13,10],[15,1,15,7],[16,1,16,7],[17,1,17,7],[18,1,18,7],[19,1,19,7],[20,1,20,7],[25,1,25,7],[50,2,50,8],[27,1,27,7],[28,1,28,7],[33,1,33,7],[34,1,34,7],[35,1,35,7],[42,1,42,7],[43,1,43,7],[44,1,44,7],[45,1,45,7],[46,1,46,7],[49,2,49,8],[64,1,64,7],[51,2,51,8],[52,2,52,8],[53,2,53,8],[55,1,55,10],[57,1,57,7],[58,1,58,7],[59,1,59,7],[60,1,60,7],[61,1,61,7],[62,1,62,7],[63,1,63,7],[82,1,82,7],[65,1,65,7],[67,1,67,10],[69,1,69,7],[70,1,70,7],[71,1,71,7],[72,1,72,7],[73,1,73,7],[78,1,78,7],[79,1,79,7],[80,1,80,7],[81,1,81,7],[108,1,108,7],[87,1,87,7],[88,1,88,7],[89,1,89,7],[90,1,90,7],[91,1,91,7],[98,1,98,7],[99,1,99,7],[100,1,100,7],[101,1,101,7],[106,1,106,7],[107,1,107,7],[124,1,124,7],[109,1,109,7],[110,1,110,7],[111,1,111,7],[116,1,116,7],[117,1,117,7],[118,1,118,7],[119,1,119,7],[120,1,120,7],[121,1,121,7],[122,1,122,7],[123,1,123,7],[131,1,131,7],[132,1,132,7],[133,1,133,7],[134,1,134,7],[125,1,125,7],[126,1,126,7],[127,1,127,7],[128,1,128,7],[129,1,129,7],[130,1,130,7]]}
["Designação do Projeto",null,null,null,{"$f":"'Ident. Empresa'!$C$38","v":0}]
[]
["Responda às questões seguintes durante os 5 anos após a conclusão do projeto, assinalando as alterações entretanto ocorridas."]
[]
["1. Identifique a tipologia de projeto:"]
[]
[]
["1.1. Tratando-se de um \"Processo\", qual o grau de concretização do projeto? (Assinale com \"X\")"]
[]
[null,"Já está endogeneizado na empresa",null,null,null,null,null,null,null,{"$f":"IF(I10=\"X\",\"Siga para pergunta 2\",\"\")","v":""}]
[null,"Está em fase de endogeneização",null,null,null,null,null,null,null,{"$f":"IF(I11=\"X\",\"Siga para pergunta 2\",\"\")","v":""}]
[null,"O processo não foi endogeneizado",null,null,null,null,null,null,null,{"$f":"IF(I12=\"X\",\"Siga para pergunta 1.1.1\",\"\")","v":""}]
[]
[null,"1.1.1. Se o processo não foi endogeneizado, identifique os fatores que estão a dificultar ou impedi-la, classificando a respetiva importância (1=sem importância; 5=muito importante)"]
[]
[null,"Custos de implementação muito superiores aos esperados"]
[null,"Deficiências da empresa em termos de organização e gestão"]
[null,"Escassez de capitais para lançamento dos produtos produzidos com o novo processo"]
[null,"Dificuldade em proteger as inovações dos concorrentes"]
[null,"Falta de pessoal qualificado"]
[null,"Licenciamentos e autorizações"]
[]
[]
["1.2. Tratando-se de um \"Produto/Serviço\", qual o grau de concretização do projeto? (Assinale com\"X\")"]
[]
[null,"Protótipo laboratorial"]
[null,"Protótipo industrial"]
[null,"Disponível para demonstração"]
[null,"Desenvolvimentos adicionais"]
[null,"Pré-série"]
[]
[null,"1.2.1 Em relação aos mercados? (Selecione):"]
[]
[null,"Já está no mercado",null,null,null,null,null,null,null,{"$f":"IF(I34=\"X\",\"Siga para pergunta 1.2.1.1.\",\"\")","v":""}]
[null,"Já está concluído, mas ainda não está no mercado",null,null,null,null,null,null,null,{"$f":"IF(I35=\"X\",\"Siga para pergunta 1.2.1.2.\",\"\")","v":""}]
[null,"Não há intenção de avançar para a produção",null,null,null,null,null,null,null,{"$f":"IF(I36=\"X\",\"Siga para pergunta 1.2.1.3.\",\"\")","v":""}]
[]
[]
[null,"1.2.1.1. Se o produto já está no mercado, indique o ano e assinale com \"X\":"]
[]
[null,"Ano"]
[]
[null,"Produção própria"]
[null,"Produção por terceiros"]
[null,"Nova unidade"]
[null,"Nova linha de produção"]
[null,"Aumento da capacidade de produção"]
[]
[null,"Quais os principais setores clientes pela sua ordem crescente de importância? (lista CAEs)"]
[null,"1.º"]
[null,"2.º"]
[null,"3.º"]
[null,"4.º"]
[null,"5.º",null,null,null,null,null,null,null,"Siga para a pergunta 2."]
[]
[null,"1.2.1.2. Se o produto já está concluído mas ainda não está no mercado, qualifique (1=sem importância; 5=muito importante) os principais fatores que estão a dificultar a obtenção dos objetivos fixados:"]
[]
[null,"Capitais próprios e dificuldade de financiamento"]
[null,"Falta de pessoal qualificado (técnico, comercial, …)"]
[null,"Implementação das soluções"]
[null,"Obtenção de matérias primas e componentes"]
[null,"Licenciamentos e autorizações"]
[null,"Mercados e canais comerciais"]
[null,"Escassez de clientes"]
[null,"Pressão da concorrência"]
[null,"Risco de obsolescência do produto",null,null,null,null,null,null,null,"Siga para a pergunta 2."]
[]
[null,"1.2.1.3. Não há intenção de avançar para a produção pelas seguintes razões (assinale com ‘X’):"]
[]
[null,"Não existem resultados valorizáveis"]
[null,"Alteração da situação de mercado"]
[null,"Alterações de normas técnicas ou de certificação"]
[null,"Dificuldade em obter financiamento"]
[null,"Dificuldade nos circuitos de comercialização",null,null,null,null,null,null,null,"Siga para a pergunta 2."]
[]
[]
["2. Existem outras estratégias de valorização de resultados? (assinale com ‘X’) "]
[]
[null,"Joint-Venture"]
[null,"Novo projeto de I&D"]
[null,"Licença de produção"]
[null,"Acordo de representação"]
[null,"Transferência de tecnologia"]
[]
[]
["3. Diga qual o grau de inovação dos resultados do projeto relativamente a outros análogos (assinale com ‘X’)"]
[]
[null,"Aproximação do estado da arte internacional"]
[null,"Atingiu-se o estado da arte internacional"]
[null,"Avanço incremental"]
[null,"Avanço muito significativo"]
[null,"Inovação radical"]
[]
[]
["4. Foi efetuado algum pedido de registo de propriedade industrial? "]
[]
[null,"4.1. Se respondeu \"SIM\", identifique a tipologia (assinale com “X”):"]
[]
[null,"Patente"]
[null,"Marca"]
[null,"Design"]
[null,"Modelo de utilidade"]
[]
[]
[null,"4.2. Se respondeu \"NÃO\", qualifique (1=sem importância; 5=muito importante) os seguintes fatores:"]
[]
[null,"Resultados não são patenteáveis"]
[null,"Sistema de patentes não oferece proteção efetiva"]
[null,"Burocracia elevada"]
[null,"Custos demasiado elevados"]
[null,"A empresa desconhece vantagens efetivas do registo"]
[null,"Empresa dá preferência ao sigilo industrial"]
[]
[]
["5. Contribuição do projeto para outro tipo de benefícios. Identifique a intensidade entre "]
["(1=inexistente; 2=modesto; 3=razoável; 4=grande; 5=muito grande):"]
[null,"Melhorias de qualidade de produtos ou processos"]
[null,"Aumentos de produtividade ou melhoria de eficiência global"]
[null,"Melhoria de sistemas organizativos"]
[null,"Aumento da flexibilidade produtiva"]
[null,"Melhoria nas condições de trabalho e segurança"]
[null,"Melhor posicionamento e imagem no Mercado"]
[null,"Projeto decisivo para a sobrevivência / desenvolvimento da empresa"]
[null,"Ampliação da gama de produtos"]
[null,"Entrada em novos mercados"]
[null,"Substituição de importações"]
[null,"Substituição de produção realizada previamente sob licença"]
[null,"Redução da dependência em termos de aquisição de tecnologia"]
[null,"Desenvolvimento de competências tecnológias internas"]
[null,"Desenvolvimento de capacidades de relacionamento com entidades do Sistema de I&I"]
[null,"(Re) definição de estratégia tecnológica e de I&D"]
[null,"(Re)definição da estratégia global da empresa"]
[null,"Criação de emprego altamente qualificado de nível 8 (doutorados)"]
[null,"Formação de Recursos humanos internos"]
[null,"Impacto ambiental"]

{"sheet":"Aux","index":12,"n_rows":37,"n_cols":25,"rows_kept":37,"cut":false,"hidden":true,"merged":[]}
[]
[null,"Produto/Serviço",null,null,"Sim",null,"X",null,null,"Agricultura, produção animal, caça, floresta e pesca "]
[null,"Processo",null,null,"Não",null,null,null,null,"Indústrias extractivas"]
[null,null,null,null,null,null,null,null,null,"Indústrias Transformadoras"]
[null,3,null,null,3,null,1,null,null,"Electricidade, gás, vapor, água quente e fria e ar frio"]
[null,null,null,null,null,null,null,null,null,"Captação, tratamento e distribuição de água; saneamento,\ngestão de resíduos e despoluição"]
[null,null,null,null,null,null,null,null,null,"Construção"]
[null,null,null,null,null,null,null,null,null,"Comércio por grosso e a retalho; reparação de veículos\nautomóveis e motociclos"]
[null,"X",null,null,null,null,null,null,null,"Transportes e armazenagem"]
[null,null,null,null,null,null,null,null,null,"Alojamento, restauração e similares"]
[null,null,null,null,null,null,null,null,null,"Atividades de informação e de comunicação "]
[null,null,null,null,null,null,null,null,null,"Atividades financeiras e de seguros"]
[null,null,null,null,null,null,null,null,null,"Atividades imobiliárias "]
[null,null,null,null,null,null,null,null,null,"Atividades de consultoria, científicas, técnicas e similares"]
[null,null,null,null,null,null,null,null,null,"Atividades administrativas e dos serviços de apoio"]
[null,null,null,null,null,null,null,null,null,"Administração Pública e Defesa; Segurança Social Obrigatória"]
[null,null,null,null,null,null,null,null,null,"Educação"]
[null,null,null,null,null,null,null,null,null,"Atividades de saúde humana e apoio social"]
[null,null,null,null,null,null,null,null,null,"Atividades artísticas, de espectáculos, desportivas e recreativas"]
[null,null,null,null,null,null,null,null,null,"Outras atividades de serviços"]
[null,null,null,null,null,null,null,null,null,"Atividades das famílias empregadoras de pessoal doméstico e \natividades de produção das famílias para uso próprio"]
[null,null,null,null,null,null,null,null,null,"Atividades dos organismos internacionais e outras instituições\nextra-territoriais"]
[]
[]
[]
[]
[null,4,null,null,null,null,null,null,"projeto 2",null,"Projeto3",null,"Projeto4",null,"Projeto5",null,"Projeto6",null,"Projeto7",null,"Projeto8",null,"Projeto9",null,"Projeto10"]
[null,null,null,null,null,null,null,null,"Produto/Serviço",null,"Produto/Serviço",null,"Produto/Serviço",null,"Produto/Serviço",null,"Produto/Serviço",null,"Produto/Serviço",null,"Produto/Serviço",null,"Produto/Serviço",null,"Produto/Serviço"]
[null,null,null,null,null,null,null,null,"Processo",null,"Processo",null,"Processo",null,"Processo",null,"Processo",null,"Processo",null,"Processo",null,"Processo",null,"Processo"]
[]
[null,null,null,null,null,null,null,null,3,null,3,null,3,null,3,null,3,null,3,null,3,null,3,null,3]
[]
[]
[null,null,null,null,null,null,null,null,"Sim",null,"Sim",null,"Sim",null,"Sim",null,"Sim",null,"Sim",null,"Sim",null,"Sim",null,"Sim"]
[null,null,null,null,null,null,null,null,"Não",null,"Não",null,"Não",null,"Não",null,"Não",null,"Não",null,"Não",null,"Não",null,"Não"]
[]
[null,null,null,null,null,null,null,null,3,null,3,null,3,null,3,null,3,null,3,null,3,null,3,null,3]